bitfinex-derivatives/quotes_BTCF0:USTF0_20241015
["timestamp","ask_amount","ask_price","bid_price","bid_amount"]
[1728987633967,0.076111,65717.0,65716.0,0.076111]
[1728987634162,0.076105,65722.0,65721.0,0.076103]
[1728987634467,0.436901,65725.0,65724.0,0.076102]
[1728987634667,0.436901,65725.0,65724.0,0.25081199]
[1728987634868,0.436901,65725.0,65724.0,0.17496348]
[1728987635065,0.0306,65729.0,65724.0,0.09886148]
[1728987635264,0.076099,65728.0,65727.0,0.15194158]
[1728987635465,0.076099,65728.0,65727.0,0.17395278]
[1728987636373,0.256099,65728.0,65727.0,0.09785578]
[1728987636574,0.256099,65728.0,65727.0,0.17369573]
[1728987637172,0.256099,65728.0,65727.0,0.07583995]
[1728987637370,0.257099,65728.0,65727.0,0.17568725]
[1728987637678,0.258099,65728.0,65727.0,0.17768725]
[1728987637976,0.258099,65728.0,65727.0,0.1779453]
[1728987638772,0.002,65728.0,65727.0,0.5387453]
[1728987638967,0.002,65728.0,65727.0,0.62976598]
[1728987639175,0.002,65728.0,65727.0,0.5387453]
[1728987639374,0.076092,65733.0,65732.0,0.076093]
[1728987639572,0.076092,65733.0,65732.0,0.076493]
[1728987639773,0.076092,65733.0,65732.0,0.0004]
[1728987640466,0.077092,65733.0,65732.0,0.0034]
[1728987642968,0.077092,65733.0,65732.0,0.079493]
[1728987646577,0.077092,65733.0,65732.0,0.17692568]
[1728987649480,0.077092,65733.0,65732.0,0.079493]
[1728987649677,0.077092,65733.0,65732.0,0.17695434]
[1728987650070,0.0071,65740.0,65732.0,0.17695434]
[1728987650071,0.3616,65768.0,65733.0,0.45636]
[1728987650271,0.0004,65767.0,65760.0,0.43726]
[1728987650476,0.0004,65767.0,65766.0,0.256453]
[1728987650980,0.0004,65767.0,65766.0,0.437253]
[1728987651178,0.0004,65767.0,65766.0,0.69296213]
[1728987651874,0.076452,65767.0,65766.0,0.256453]
[1728987652075,0.076452,65767.0,65766.0,0.076453]
[1728987652287,0.076452,65767.0,65766.0,0.13697931]
[1728987652477,0.076452,65767.0,65766.0,0.076453]
[1728987653784,0.076452,65767.0,65766.0,0.080453]
[1728987653987,0.076452,65767.0,65766.0,0.085453]
[1728987654184,0.076452,65767.0,65766.0,0.081453]
[1728987654380,0.077452,65767.0,65766.0,0.13579618]
[1728987654784,0.077452,65767.0,65766.0,0.090453]
[1728987655378,0.077452,65767.0,65766.0,0.270453]
[1728987655890,0.076452,65767.0,65766.0,0.261453]
[1728987656085,0.077452,65767.0,65766.0,0.271453]
[1728987657186,0.078452,65767.0,65766.0,0.271453]
[1728987657982,0.077452,65767.0,65766.0,0.266453]
[1728987658189,0.078452,65767.0,65766.0,0.271453]
[1728987659282,0.077452,65767.0,65766.0,0.271453]
[1728987659489,0.078452,65767.0,65766.0,0.271453]
[1728987659689,0.077452,65767.0,65766.0,0.266453]
[1728987659984,0.078452,65767.0,65766.0,0.271453]
[1728987661389,0.078452,65767.0,65766.0,0.0154]
[1728987661897,0.076054,65766.0,65761.0,0.076059]
[1728987662080,0.076054,65766.0,65760.0,0.4804907]
[1728987662081,0.04100504,65765.0,65764.0,0.076055]
[1728987662286,0.11705904,65765.0,65764.0,0.076055]
[1728987663385,0.04100504,65765.0,65761.0,0.015]
[1728987663589,0.076058,65763.0,65762.0,0.076056]
[1728987663789,0.11706304,65763.0,65762.0,0.076056]
[1728987665591,0.11806304,65763.0,65762.0,0.076056]
[1728987665895,0.11853981,65763.0,65762.0,0.076056]
[1728987666903,0.04248181,65763.0,65762.0,0.076056]
[1728987667198,0.04255631,65763.0,65762.0,0.076056]
[1728987668501,0.04155631,65763.0,65762.0,0.076056]
[1728987668706,0.04255631,65763.0,65762.0,0.077056]
[1728987669897,0.002,65763.0,65762.0,0.077056]
[1728987670100,0.078057,65763.0,65762.0,0.077056]
[1728987670908,0.077057,65763.0,65762.0,0.077056]
[1728987671214,0.078057,65763.0,65762.0,0.437856]
[1728987671507,0.078057,65763.0,65762.0,0.001]
[1728987671805,0.078057,65763.0,65760.0,0.0004]
[1728987671806,0.258057,65763.0,65760.0,0.0004]
[1728987672006,0.436859,65761.0,65760.0,0.0004]
[1728987673799,0.437859,65761.0,65760.0,0.0014]
[1728987674601,0.438859,65761.0,65760.0,0.0014]
[1728987675601,0.438859,65761.0,65760.0,0.0004]
[1728987675806,0.437859,65761.0,65760.0,0.0014]
[1728987676702,0.438859,65761.0,65760.0,0.0014]
[1728987677008,0.52543698,65761.0,65760.0,0.0014]
[1728987677411,0.52343698,65761.0,65760.0,0.0014]
[1728987677600,0.16363698,65761.0,65760.0,0.0014]
[1728987677800,0.52443698,65761.0,65760.0,0.0014]
[1728987678012,0.16363698,65761.0,65760.0,0.0014]
[1728987678315,0.52443698,65761.0,65760.0,0.0014]
[1728987679902,0.47792198,65761.0,65760.0,0.0014]
[1728987680614,0.11712198,65761.0,65760.0,0.0014]
[1728987680815,0.47792198,65761.0,65760.0,0.0014]
[1728987681017,0.5245623,65761.0,65760.0,0.0014]
[1728987681416,0.1637623,65761.0,65760.0,0.0014]
[1728987682017,0.5245623,65761.0,65760.0,0.0014]
[1728987684919,0.437859,65761.0,65760.0,0.0014]
[1728987685715,0.077059,65761.0,65760.0,0.0014]
[1728987685914,0.437859,65761.0,65760.0,0.0014]
[1728987691919,0.72931346,65761.0,65755.0,0.00134635]
[1728987692120,0.076069,65753.0,65752.0,0.076069]
[1728987692424,0.16288117,65753.0,65752.0,0.076069]
[1728987692722,0.21269258,65753.0,65752.0,0.076069]
[1728987692917,0.21599329,65753.0,65752.0,0.076069]
[1728987693325,0.35261687,65753.0,65752.0,0.076069]
[1728987694216,0.35361687,65753.0,65752.0,0.076069]
[1728987694425,0.35461687,65753.0,65752.0,0.076069]
[1728987695416,0.21573831,65753.0,65752.0,0.076069]
[1728987695926,0.21573831,65753.0,65752.0,0.196069]
[1728987699931,0.078069,65753.0,65752.0,0.41030799]
[1728987700118,0.002,65753.0,65752.0,0.33423899]
[1728987700318,0.078069,65753.0,65752.0,0.44033902]
[1728987700521,0.078069,65753.0,65752.0,0.57570656]
[1728987700914,0.077069,65753.0,65752.0,0.44033902]
[1728987701119,0.078069,65753.0,65752.0,0.21423899]
[1728987701322,0.438869,65753.0,65752.0,0.21423899]
[1728987701722,0.469169,65753.0,65752.0,0.09777998]
[1728987702028,0.470169,65753.0,65752.0,0.09777998]
[1728987702432,0.469169,65753.0,65752.0,0.09777998]
[1728987703432,0.470169,65753.0,65752.0,0.17380674]
[1728987703821,0.650169,65753.0,65752.0,0.17380674]
[1728987704131,0.649169,65753.0,65752.0,0.17380674]
[1728987704524,0.649169,65753.0,65752.0,0.07602676]
[1728987705532,0.649169,65753.0,65751.0,0.07602676]
[1728987705533,0.076069,65752.0,65751.0,0.07602676]
[1728987705831,0.256069,65752.0,65751.0,0.17398122]
[1728987706422,0.256069,65752.0,65751.0,0.07602676]
[1728987706834,0.257069,65752.0,65751.0,0.07602676]
[1728987707037,0.152142,65751.0,65747.0,0.04558608]
[1728987707231,0.076074,65748.0,65747.0,0.04558608]
[1728987707735,0.076074,65748.0,65747.0,0.18]
[1728987707928,0.076074,65748.0,65747.0,0.31685644]
[1728987708239,0.001,65752.0,65747.0,0.18]
[1728987708537,0.076071,65751.0,65750.0,0.256071]
[1728987711039,0.001,65751.0,65750.0,0.256071]
[1728987711331,0.002,65751.0,65750.0,1.312351]
[1728987711742,0.002,65751.0,65750.0,1.48584594]
[1728987712340,0.0035,65757.0,65750.0,1.40981918]
[1728987712537,0.079561,65760.0,65759.0,0.076061]
[1728987712735,0.076056,65764.0,65759.0,0.17302751]
[1728987712932,0.076056,65764.0,65763.0,0.256457]
[1728987713332,0.07605,65769.0,65766.0,0.076053]
[1728987713536,0.437252,65767.0,65766.0,0.076453]
[1728987714434,0.443252,65767.0,65766.0,0.076453]
[1728987714733,0.445252,65767.0,65766.0,0.076453]
[1728987714939,0.53253925,65767.0,65766.0,0.076453]
[1728987716958,0.53253925,65767.0,65766.0,0.0004]
[1728987718058,0.53253925,65767.0,65766.0,0.076453]
[1728987718659,0.53253925,65767.0,65766.0,0.0004]
[1728987718959,0.71248847,65767.0,65766.0,0.0004]
[1728987719555,0.77608847,65767.0,65766.0,0.0004]
[1728987720355,0.77608847,65767.0,65766.0,0.0001933]
[1728987720573,0.82929911,65767.0,65766.0,0.0001933]
[1728987720779,0.076056,65764.0,65763.0,0.07634268]
[1728987720956,0.22775142,65764.0,65763.0,0.07634268]
[1728987721156,0.21650311,65764.0,65763.0,0.07634268]
[1728987722063,0.076056,65764.0,65763.0,0.07634268]
[1728987723156,0.079056,65764.0,65763.0,0.07734268]
[1728987725670,0.003,65764.0,65763.0,1.49434268]
[1728987726157,0.003,65764.0,65763.0,1.66692151]
[1728987726466,0.003,65764.0,65763.0,1.57028877]
[1728987727467,0.003,65764.0,65763.0,1.49434268]
[1728987727774,0.003,65764.0,65763.0,0.43814268]
[1728987728065,0.079056,65764.0,65763.0,0.36208668]
[1728987728952,0.439856,65764.0,65763.0,0.00128668]
[1728987729264,0.439856,65764.0,65763.0,0.06191271]
[1728987729454,0.439856,65764.0,65763.0,0.00128668]
[1728987730049,0.47989368,65764.0,65763.0,0.00128668]
[1728987730436,0.52639064,65764.0,65763.0,0.00128668]
[1728987732338,0.52639064,65764.0,65763.0,0.00062584]
[1728987733544,0.47989368,65764.0,65763.0,0.00062584]
[1728987734052,0.52630329,65764.0,65763.0,0.00062584]
[1728987734548,0.57889417,65764.0,65763.0,0.00062584]
[1728987735550,0.71540764,65764.0,65763.0,0.00062584]
[1728987736054,0.71493853,65764.0,65763.0,0.00062584]
[1728987736445,0.57842506,65764.0,65763.0,0.00062584]
[1728987737154,0.439856,65764.0,65763.0,0.06125187]
[1728987737349,0.439856,65764.0,65763.0,0.00062584]
[1728987742843,0.079056,65764.0,65763.0,0.00062584]
[1728987743042,0.439856,65764.0,65763.0,0.00062584]
[1728987744345,0.470456,65764.0,65763.0,0.00062584]
[1728987745761,0.470456,65764.0,65759.0,0.0004]
[1728987745762,0.650456,65764.0,65759.0,0.0004]
[1728987746053,0.67686,65760.0,65759.0,0.0004]
[1728987746756,0.55686,65760.0,65759.0,0.0004]
[1728987747552,0.55786,65760.0,65759.0,0.0004]
[1728987747751,0.19706,65760.0,65759.0,0.0004]
[1728987747954,0.91866,65760.0,65759.0,0.0004]
[1728987748548,0.91866,65760.0,65759.0,0.0014]
[1728987748855,1.03866,65760.0,65759.0,0.0014]
[1728987750959,0.91866,65760.0,65759.0,0.0014]
[1728987751161,0.9402242,65760.0,65759.0,0.0014]
[1728987752146,0.97974045,65760.0,65759.0,0.0014]
[1728987754862,0.97978578,65760.0,65759.0,0.0014]
[1728987755664,0.25818578,65760.0,65759.0,0.0014]
[1728987755846,0.61898578,65760.0,65759.0,0.0014]
[1728987757769,0.64346637,65760.0,65759.0,0.0014]
[1728987759654,0.66555607,65760.0,65759.0,0.0014]
[1728987759857,0.7181983,65760.0,65759.0,0.0014]
[1728987760161,0.7181983,65760.0,65759.0,0.09888457]
[1728987760162,0.5799497,65760.0,65759.0,0.09888457]
[1728987762056,0.55786,65760.0,65759.0,0.09888457]
[1728987762560,0.19706,65760.0,65759.0,0.09888457]
[1728987762768,0.55786,65760.0,65759.0,0.09888457]
[1728987767163,0.55786,65760.0,65749.0,0.3608]
[1728987767164,0.7588193,65760.0,65749.0,0.3608]
[1728987767369,0.7588193,65760.0,65754.0,0.076066]
[1728987767370,0.2281521,65755.0,65754.0,0.076066]
[1728987767565,0.36684752,65755.0,65754.0,0.076066]
[1728987767772,0.27819462,65757.0,65755.0,0.45624]
[1728987768067,0.001,65760.0,65759.0,0.076061]
[1728987768269,0.001,65760.0,65759.0,0.796461]
[1728987768461,0.001,65760.0,65759.0,1.252661]
[1728987769270,0.002,65760.0,65759.0,1.252661]
[1728987769775,0.13725722,65767.0,65766.0,0.076053]
[1728987769776,0.0004,65767.0,65766.0,0.076053]
[1728987770070,0.0004,65776.0,65770.0,0.076049]
[1728987770071,0.13725722,65773.0,65770.0,0.076049]
[1728987770271,0.0004,65773.0,65770.0,0.796449]
[1728987770474,0.0004,65773.0,65770.0,1.252569]
[1728987770968,0.13725722,65773.0,65770.0,1.252569]
[1728987771168,0.13685722,65772.0,65770.0,1.252569]
[1728987771359,0.0004,65773.0,65770.0,1.252569]
[1728987771559,0.0014,65771.0,65770.0,1.252569]
[1728987772164,0.0014,65771.0,65770.0,1.132569]
[1728987772365,0.0014,65771.0,65770.0,0.532569]
[1728987772559,0.0014,65771.0,65770.0,0.076449]
[1728987772761,0.0014,65771.0,65770.0,0.077449]
[1728987773474,0.077447,65771.0,65770.0,0.09939675]
[1728987777379,0.0014,65771.0,65770.0,0.55551675]
[1728987778074,0.077447,65771.0,65770.0,0.077449]
[1728987778470,0.077447,65771.0,65770.0,0.197449]
[1728987779670,0.0014,65771.0,65770.0,0.197449]
[1728987782571,0.0014,65771.0,65770.0,1.253569]
[1728987784181,0.07744,65771.0,65770.0,1.253569]
[1728987785084,0.07744,65771.0,65770.0,1.05752]
[1728987785577,0.07744,65771.0,65770.0,0.6014]
[1728987785778,0.07744,65771.0,65770.0,1.05752]
[1728987785970,0.07744,65771.0,65770.0,0.0014]
[1728987787676,0.07744,65771.0,65770.0,0.077441]
[1728987789283,0.07744,65771.0,65770.0,0.438241]
[1728987789983,0.07744,65771.0,65770.0,0.3622]
[1728987790186,0.0317833,65771.0,65770.0,0.46069741]
[1728987790382,0.1517833,65771.0,65770.0,0.55145432]
[1728987790582,0.1517833,65771.0,65770.0,0.46069741]
[1728987790977,0.1517833,65771.0,65770.0,0.46097481]
[1728987794183,0.1517833,65771.0,65770.0,0.55173172]
[1728987795280,0.2717833,65771.0,65770.0,0.10017481]
[1728987795481,0.2717833,65771.0,65769.0,0.07579448]
[1728987795482,1.0887033,65771.0,65769.0,0.07579448]
[1728987795782,0.076043,65768.0,65766.0,0.0004]
[1728987795980,0.229344,65767.0,65766.0,0.0004]
[1728987796285,0.229344,65767.0,65766.0,0.07619448]
[1728987796476,0.229344,65767.0,65766.0,0.0004]
[1728987797184,0.109344,65767.0,65766.0,0.0004]
[1728987797491,0.110344,65767.0,65766.0,0.0024]
[1728987798389,0.077044,65767.0,65766.0,0.1824]
[1728987798586,0.078044,65767.0,65766.0,0.1824]
[1728987798794,0.078044,65767.0,65766.0,0.258446]
[1728987798987,0.078044,65767.0,65766.0,0.37494143]
[1728987801293,0.078044,65767.0,65766.0,0.29889543]
[1728987802791,0.078044,65767.0,65766.0,0.32042607]
[1728987802985,0.078044,65767.0,65766.0,1.45263207]
[1728987802986,0.002,65767.0,65766.0,1.45263207]
[1728987803691,0.002,65767.0,65766.0,1.45738827]
[1728987803889,0.002,65767.0,65766.0,1.5634883]
[1728987804095,0.0004,65771.0,65766.0,1.51651965]
[1728987804297,0.076041,65770.0,65769.0,0.256041]
[1728987804594,0.076041,65770.0,65769.0,0.2607972]
[1728987804786,0.076041,65770.0,65769.0,0.7169172]
[1728987806592,0.001,65770.0,65769.0,1.3199172]
[1728987807801,0.001,65770.0,65769.0,1.315161]
[1728987809700,0.001,65770.0,65769.0,1.31991658]
[1728987809897,0.001,65770.0,65769.0,0.26379658]
[1728987810201,0.001,65770.0,65769.0,0.079041]
[1728987811310,0.001,65770.0,65769.0,0.08379684]
[1728987811700,0.001,65770.0,65769.0,0.003]
[1728987811701,0.257041,65770.0,65769.0,0.003]
[1728987812000,0.077041,65770.0,65769.0,0.079042]
[1728987812204,0.077041,65770.0,65769.0,0.17635738]
[1728987814199,0.077041,65770.0,65769.0,0.17633097]
[1728987814795,0.077041,65770.0,65769.0,0.53713097]
[1728987815113,0.077041,65770.0,65769.0,0.17633097]
[1728987815290,0.077041,65770.0,65769.0,0.53713097]
[1728987815490,0.257041,65770.0,65769.0,0.46108897]
[1728987816400,0.257041,65770.0,65769.0,0.55205577]
[1728987816600,0.257041,65770.0,65769.0,0.19126534]
[1728987816601,0.713161,65770.0,65769.0,0.19126534]
[1728987816802,0.076044,65767.0,65766.0,0.07623951]
[1728987817099,0.076044,65767.0,65766.0,0.0004]
[1728987817299,1.132204,65767.0,65766.0,0.0004]
[1728987818003,1.314204,65767.0,65766.0,0.0044]
[1728987818604,0.714204,65767.0,65766.0,0.0044]
[1728987820704,0.258044,65767.0,65766.0,0.0044]
[1728987825202,0.618844,65767.0,65766.0,0.0044]
[1728987828799,0.618844,65767.0,65766.0,0.06504955]
[1728987829406,0.618844,65767.0,65766.0,0.0044]
[1728987833013,0.258044,65767.0,65766.0,0.0044]
[1728987834206,0.258044,65767.0,65766.0,0.06499544]
[1728987834419,0.258044,65767.0,65766.0,0.0044]
[1728987836822,0.258044,65767.0,65766.0,0.08023951]
[1728987837611,0.258044,65767.0,65766.0,0.17689017]
[1728987838519,0.258044,65767.0,65766.0,0.10105066]
[1728987841325,0.002,65767.0,65766.0,0.5452]
[1728987841625,0.0004,65773.0,65772.0,0.076039]
[1728987841922,0.076832,65778.0,65772.0,0.75215636]
[1728987842118,0.076832,65778.0,65777.0,0.1804]
[1728987842322,0.0039,65781.0,65777.0,0.39138179]
[1728987842323,0.0004,65781.0,65777.0,0.39138179]
[1728987842519,0.0004,65781.0,65780.0,0.3612]
[1728987843521,0.04116413,65781.0,65780.0,0.3612]
[1728987843917,0.00228131,65784.0,65781.0,0.076028]
[1728987844225,0.0004,65786.0,65782.0,0.1804]
[1728987844620,0.076025,65784.0,65782.0,0.0004]
[1728987844815,0.076426,65783.0,65782.0,0.0004]
[1728987845322,0.086426,65783.0,65782.0,0.0004]
[1728987846619,0.084426,65783.0,65782.0,0.0004]
[1728987846820,0.095426,65783.0,65782.0,0.0004]
[1728987847020,0.275426,65783.0,65782.0,0.0004]
[1728987860339,0.31576194,65783.0,65782.0,0.0004]
[1728987861424,0.31576877,65783.0,65782.0,0.0004]
[1728987861826,0.37576877,65783.0,65782.0,0.0004]
[1728987862026,0.42222734,65783.0,65782.0,0.0004]
[1728987862236,0.37573305,65783.0,65782.0,0.0004]
[1728987862431,0.42212154,65783.0,65782.0,0.0004]
[1728987863137,0.87816154,65783.0,65782.0,0.0004]
[1728987863543,0.87816154,65783.0,65782.0,0.00019493]
[1728987863934,0.81770223,65783.0,65782.0,0.00019493]
[1728987864236,0.81770223,65783.0,65777.0,0.0004]
[1728987864237,0.076032,65778.0,65777.0,0.0004]
[1728987864433,0.076038,65773.0,65772.0,0.0004]
[1728987864636,0.34227423,65773.0,65772.0,0.0004]
[1728987865334,0.256038,65773.0,65772.0,0.0004]
[1728987866349,0.256038,65773.0,65772.0,0.17492378]
[1728987866350,0.257038,65773.0,65772.0,0.17492378]
[1728987867132,0.257038,65773.0,65772.0,0.07718232]
[1728987867335,0.257038,65773.0,65772.0,0.17528564]
[1728987867646,0.257038,65773.0,65772.0,0.17528477]
[1728987868438,0.257038,65773.0,65772.0,0.09950245]
[1728987871445,0.257038,65773.0,65772.0,0.09951718]
[1728987872342,0.257038,65773.0,65772.0,0.0014]
[1728987880242,0.257038,65773.0,65772.0,0.099843]
[1728987883844,0.317038,65773.0,65772.0,0.099843]
[1728987886447,0.317038,65773.0,65772.0,0.19078178]
[1728987886648,0.317038,65773.0,65772.0,0.099843]
[1728987890650,0.317038,65773.0,65772.0,0.09999079]
[1728987892454,0.317038,65773.0,65772.0,0.19092957]
[1728987892650,0.317038,65773.0,65772.0,0.21758228]
[1728987894458,0.317038,65773.0,65772.0,0.21770765]
[1728987895342,0.45126166,65773.0,65772.0,0.0014]
[1728987895556,0.35557324,65773.0,65772.0,0.0014]
[1728987896654,0.35558225,65773.0,65772.0,0.0014]
[1728987899161,0.40032768,65773.0,65772.0,0.0014]
[1728987902154,0.28032768,65773.0,65772.0,0.0014]
[1728987902353,0.197038,65773.0,65772.0,0.10009874]
[1728987903254,0.317038,65773.0,65772.0,0.10009874]
[1728987904960,0.317038,65773.0,65772.0,0.21768938]
[1728987906958,0.317038,65773.0,65772.0,0.10009874]
[1728987909364,0.3555954,65773.0,65772.0,0.0014]
[1728987913273,0.317038,65773.0,65772.0,0.0014]
[1728987913568,0.57132125,65773.0,65772.0,0.0014]
[1728987913865,0.57132125,65773.0,65765.0,0.0618]
[1728987913866,0.076046,65766.0,65765.0,0.0618]
[1728987914062,0.43774165,65766.0,65765.0,0.0618]
[1728987914361,0.33032925,65766.0,65765.0,0.0618]
[1728987914963,0.33132925,65766.0,65765.0,0.0628]
[1728987916159,0.33132925,65766.0,65765.0,0.0648]
[1728987916160,0.33232925,65766.0,65765.0,0.0648]
[1728987916968,0.4335311,65766.0,65765.0,0.0648]
[1728987917263,0.28134458,65766.0,65765.0,0.0648]
[1728987917461,0.198046,65766.0,65765.0,0.16361839]
[1728987917969,0.198046,65766.0,65765.0,0.16361692]
[1728987918267,0.2248903,65766.0,65765.0,0.16361692]
[1728987918878,0.2248903,65766.0,65765.0,0.25476344]
[1728987919167,0.2248903,65766.0,65765.0,0.28136152]
[1728987919355,0.3448903,65766.0,65765.0,0.25006152]
[1728987920368,0.3448903,65766.0,65765.0,0.13231692]
[1728987921561,0.2248903,65766.0,65765.0,0.13231692]
[1728987922267,0.3448903,65766.0,65765.0,0.13231692]
[1728987923062,0.2248903,65766.0,65765.0,0.13231692]
[1728987924371,0.2248903,65766.0,65765.0,0.20824433]
[1728987924764,0.7056903,65766.0,65765.0,0.12596533]
[1728987924960,0.076047,65765.0,65758.0,0.01234626]
[1728987925161,0.076047,65765.0,65757.0,0.0035]
[1728987925162,0.316054,65759.0,65753.0,0.0035]
[1728987925464,0.316054,65759.0,65750.0,0.032]
[1728987925465,0.076063,65751.0,65750.0,0.032]
[1728987925659,0.196063,65751.0,65750.0,0.032]
[1728987927172,0.197063,65751.0,65750.0,0.034]
[1728987927570,0.198063,65751.0,65750.0,0.034]
[1728987937573,0.078063,65751.0,65750.0,0.034]
[1728987937779,0.078063,65751.0,65750.0,0.154]
[1728987937966,0.07606,65754.0,65750.0,1.21028]
[1728987938163,0.076063,65751.0,65750.0,0.034]
[1728987938564,0.076063,65751.0,65750.0,1.09028]
[1728987938974,0.076063,65751.0,65750.0,1.08828]
[1728987939571,0.076063,65751.0,65750.0,0.60828]
[1728987939776,0.076063,65751.0,65750.0,0.70577109]
[1728987941276,0.076063,65751.0,65750.0,0.70579532]
[1728987941679,0.077063,65751.0,65750.0,0.70779532]
[1728987942786,0.197063,65751.0,65750.0,0.70779532]
[1728987942972,0.197063,65751.0,65750.0,0.13151532]
[1728987943284,0.317063,65751.0,65750.0,0.09951532]
[1728987943582,0.197063,65751.0,65750.0,0.09951532]
[1728987943972,0.197063,65751.0,65750.0,0.002]
[1728987945682,0.197063,65751.0,65750.0,0.09976983]
[1728987945878,0.197063,65751.0,65750.0,0.19084974]
[1728987947687,0.076065,65749.0,65748.0,0.0324]
[1728987947980,0.28117364,65749.0,65748.0,0.0324]
[1728987948684,0.28217364,65749.0,65748.0,0.0324]
[1728987949180,0.28317364,65749.0,65748.0,0.0334]
[1728987950277,0.28317364,65749.0,65748.0,0.001]
[1728987952288,0.33545005,65749.0,65748.0,0.001]
[1728987953282,0.47233275,65749.0,65748.0,0.001]
[1728987954190,0.23744806,65749.0,65748.0,0.001]
[1728987954579,0.198065,65749.0,65748.0,0.09882604]
[1728987955486,0.198065,65749.0,65748.0,0.21544116]
[1728987957105,0.318065,65749.0,65748.0,0.09882604]
[1728987958110,0.198065,65749.0,65748.0,0.09882604]
[1728987961213,0.198065,65749.0,65748.0,0.0989518]
[1728987962115,0.198065,65749.0,65748.0,0.21568012]
[1728987962510,0.28313456,65749.0,65748.0,0.001]
[1728987962909,0.23742998,65749.0,65748.0,0.001]
[1728987964012,0.23742823,65749.0,65748.0,0.001]
[1728987967711,0.198065,65749.0,65748.0,0.001]
[1728987968408,0.23741761,65749.0,65748.0,0.001]
[1728987969602,0.198065,65749.0,65748.0,0.09887908]
[1728987971405,0.078065,65749.0,65748.0,0.2155782]
[1728987971605,0.198065,65749.0,65748.0,0.2155782]
[1728987973006,0.198065,65749.0,65748.0,0.09887908]
[1728987973708,0.198065,65749.0,65748.0,0.09892348]
[1728987978522,0.198065,65749.0,65748.0,0.09893692]
[1728987980017,0.198065,65749.0,65748.0,0.19012525]
[1728987981224,0.078065,65749.0,65748.0,0.19012525]
[1728987981413,0.198065,65749.0,65748.0,0.19012525]
[1728987983113,0.198065,65749.0,65748.0,0.19021749]
[1728987984223,0.198065,65749.0,65748.0,0.09902916]
[1728987984721,0.23737652,65749.0,65748.0,0.001]
[1728987986122,0.23737652,65749.0,65742.0,0.0035]
[1728987986123,0.40131152,65749.0,65742.0,0.0035]
[1728987986323,0.676872,65743.0,65737.0,0.0035]
[1728987986624,0.24,65738.0,65733.0,0.0141]
[1728987986925,0.436872,65743.0,65732.0,0.3608]
[1728987986926,0.076084,65733.0,65732.0,0.3608]
[1728987987131,0.11539552,65733.0,65732.0,0.3608]
[1728987987625,0.076086,65731.0,65727.0,0.0316]
[1728987987821,0.12,65728.0,65727.0,0.05834442]
[1728987988012,0.15851296,65728.0,65727.0,0.02674442]
[1728987988214,0.076091,65727.0,65720.0,0.0457]
[1728987988427,0.11460396,65727.0,65720.0,0.0457]
[1728987988627,0.11460396,65727.0,65726.0,0.38843161]
[1728987988819,0.11460396,65727.0,65726.0,0.02763161]
[1728987989014,0.11460396,65727.0,65720.0,0.0457]
[1728987989015,0.076098,65721.0,65720.0,0.0457]
[1728987989219,0.196098,65721.0,65720.0,0.0316]
[1728987989629,0.196098,65721.0,65720.0,0.05927821]
[1728987991825,0.197098,65721.0,65720.0,0.05927821]
[1728987992024,0.198098,65721.0,65720.0,0.05927821]
[1728987992326,0.318098,65721.0,65720.0,0.02767821]
[1728987992528,0.318098,65721.0,65718.0,0.3608]
[1728987992733,0.0761,65719.0,65718.0,0.3608]
[1728987993024,0.0761,65719.0,65718.0,0.57707176]
[1728987993230,0.0761,65719.0,65718.0,0.45946585]
[1728987994631,0.0771,65719.0,65718.0,0.48657822]
[1728987995424,0.0771,65719.0,65718.0,0.49895381]
[1728987995623,0.0781,65719.0,65718.0,0.49895381]
[1728987996227,0.0781,65719.0,65718.0,0.58984435]
[1728987996818,0.0781,65719.0,65718.0,0.58984439]
[1728987997335,0.0781,65719.0,65718.0,0.58974401]
[1728987998128,0.002,65719.0,65718.0,0.58974401]
[1728987998434,0.002,65719.0,65718.0,0.4912377]
[1728987999025,0.0781,65719.0,65718.0,0.4912377]
[1728987999228,0.0781,65719.0,65718.0,0.58210649]
[1728988001535,0.0761,65719.0,65718.0,0.4912377]
[1728988003137,0.0761,65719.0,65718.0,0.5673387]
[1728988003635,0.0761,65719.0,65718.0,0.56257884]
[1728988005334,0.1961,65719.0,65718.0,0.56257884]
[1728988006636,0.1961,65719.0,65718.0,0.46401337]
[1728988006838,0.1961,65719.0,65718.0,0.67847315]
[1728988007740,0.1961,65719.0,65718.0,0.46401337]
[1728988011643,0.1961,65719.0,65718.0,0.46877321]
[1728988013243,0.1961,65719.0,65718.0,0.51421781]
[1728988014334,0.1961,65719.0,65718.0,0.46877321]
[1728988014736,0.1961,65719.0,65718.0,0.68366425]
[1728988015245,0.1961,65719.0,65718.0,0.81942854]
[1728988016443,0.12,65719.0,65718.0,0.81988486]
[1728988017143,0.1961,65719.0,65718.0,0.81988486]
[1728988018136,0.0761,65719.0,65718.0,0.97413324]
[1728988018337,0.1961,65719.0,65718.0,0.97413324]
[1728988018649,0.1961,65719.0,65718.0,0.81512502]
[1728988018843,0.1961,65719.0,65718.0,0.96937265]
[1728988019539,0.1961,65719.0,65718.0,0.93683691]
[1728988019738,0.1961,65719.0,65718.0,0.57603691]
[1728988019948,0.1961,65719.0,65718.0,0.93683691]
[1728988021141,0.0761,65719.0,65718.0,0.93683691]
[1728988022646,0.076098,65721.0,65719.0,0.0761]
[1728988022851,0.196098,65721.0,65720.0,0.29386999]
[1728988023052,0.196098,65721.0,65720.0,0.17386999]
[1728988023755,0.196098,65721.0,65720.0,0.24996899]
[1728988023950,0.197098,65721.0,65720.0,0.24996899]
[1728988024748,0.197098,65721.0,65720.0,0.24990968]
[1728988024948,0.197098,65721.0,65720.0,0.15255487]
[1728988025148,0.198098,65721.0,65720.0,0.25094008]
[1728988025651,0.077098,65721.0,65720.0,0.37092867]
[1728988025848,0.078098,65721.0,65720.0,0.37092867]
[1728988026047,0.198098,65721.0,65720.0,0.25092867]
[1728988026256,0.198098,65721.0,65720.0,0.25568829]